bitfinex-derivatives/quotes_BNBF0:USTF0_20250908
["timestamp","ask_amount","ask_price","bid_price","bid_amount"]
[1757340065608,0.19735275,883.74,879.6,0.75626571]
[1757340065807,0.19735275,883.74,879.61,0.75626571]
[1757340066010,0.19735275,883.74,879.62,0.75626571]
[1757340066211,0.19735275,883.74,879.63,0.75626571]
[1757340066406,0.19735275,883.74,879.64,0.75626571]
[1757340066610,0.19735275,883.74,879.65,0.75626571]
[1757340066906,0.19735275,883.74,879.66,0.75626571]
[1757340067107,0.19735275,883.74,879.67,0.75626571]
[1757340067307,0.19735275,883.74,879.68,0.75626571]
[1757340067512,0.19735275,883.74,881.86,3.30668131]
[1757340068515,0.19735275,883.74,881.89,3.30668131]
[1757340068911,0.19735275,883.74,881.9,3.30668131]
[1757340069117,0.19735275,883.74,881.92,3.30668131]
[1757340069817,0.19735275,883.74,881.93,3.30668131]
[1757340070616,0.19735275,883.74,881.92,3.30668131]
[1757340070918,0.19735275,883.74,881.93,3.30668131]
[1757340071319,0.19735275,883.74,881.92,3.30668131]
[1757340071720,0.19735275,883.74,881.93,3.30668131]
[1757340072621,0.19735275,883.74,881.94,3.30668131]
[1757340073523,0.19735275,883.74,881.95,3.30668131]
[1757340073717,0.19735275,883.74,881.97,3.30668131]
[1757340074020,0.19735275,883.74,881.99,3.30668131]
[1757340074222,0.19735275,883.74,882.02,3.30668131]
[1757340074720,0.19735275,883.74,882.07,3.30668131]
[1757340076723,0.19735275,883.74,882.09,3.30668131]
[1757340078024,0.19735275,883.74,882.11,2.28924091]
[1757340078320,0.19735275,883.74,882.11,3.30668131]
[1757340082524,0.19735275,883.74,882.05,3.30668131]
[1757340082725,0.19735275,883.74,882.03,3.30668131]
[1757340085828,0.19735275,883.74,881.99,3.30668131]
[1757340086632,0.19735275,883.74,881.98,3.30668131]
[1757340086828,0.19735275,883.74,881.85,3.30668131]
[1757340088031,0.19735275,883.74,881.84,3.30668131]
[1757340088628,0.19735275,883.74,881.82,3.30668131]
[1757340088935,0.19735275,883.74,881.83,3.30668131]
[1757340090834,0.19735275,883.74,881.82,3.30668131]
[1757340091533,0.19735275,883.74,881.83,3.30668131]
[1757340093230,1.0145114,883.94,881.83,3.30668131]
[1757340093535,0.19743113,883.27,881.94,3.30668131]
[1757340093732,1.0145114,884.02,881.94,3.30668131]
[1757340093935,1.0145114,884.01,881.94,3.30668131]
[1757340094136,0.19742049,882.94,881.96,3.30668131]
[1757340094434,1.0145114,884.01,881.96,3.30668131]
[1757340094635,0.19741713,882.7,881.96,3.30668131]
[1757340094831,1.0145114,884.02,881.96,3.30668131]
[1757340095235,0.19741265,882.52,881.97,3.30668131]
[1757340095432,1.0145114,884.02,881.98,3.30668131]
[1757340095635,0.19741489,883.51,881.98,3.30668131]
[1757340096337,0.19741489,883.51,881.97,3.30668131]
[1757340099334,0.19741489,883.51,881.95,3.30668131]
[1757340100038,0.19741489,883.51,881.97,3.30668131]
[1757340100540,0.19741489,883.51,881.97,1.0174404]
[1757340100733,0.19741489,883.51,881.95,3.30668131]
[1757340101335,0.19741489,883.51,881.86,3.30668131]
[1757340101535,0.19741489,883.51,881.85,3.30668131]
[1757340102039,0.19741489,883.51,881.83,3.30668131]
[1757340102441,0.19741489,883.51,881.77,3.30668131]
[1757340102741,1.0145114,883.84,881.76,3.10921041]
[1757340103038,1.0145114,883.96,881.77,2.543601]
[1757340103340,1.0145114,883.9,881.7,2.543601]
[1757340103537,1.0145114,883.89,881.68,2.543601]
[1757340103736,1.0145114,883.88,881.68,2.543601]
[1757340103939,1.5217671,884.16,880.82,2.543601]
[1757340103940,1.0145114,883.89,881.69,2.543601]
[1757340104836,1.0145114,883.88,881.69,2.543601]
[1757340105437,1.0145114,883.86,881.69,2.543601]
[1757340105737,0.19747818,883.34,881.69,2.543601]
[1757340106041,0.19747818,883.34,881.69,1.5261606]
[1757340106242,0.19747818,883.34,881.68,2.543601]
[1757340107043,0.19747818,883.34,881.69,2.543601]
[1757340108946,0.19747818,883.34,881.68,2.543601]
[1757340111948,0.19747818,883.34,881.7,2.543601]
[1757340112547,0.19747818,883.34,881.71,2.543601]
[1757340115644,0.19747818,883.34,881.72,2.543601]
[1757340116247,0.19747818,883.34,881.71,2.543601]
[1757340118548,0.19747818,883.34,881.7,2.543601]
[1757340119550,0.19747818,883.34,881.69,2.543601]
[1757340121752,0.19747818,883.34,881.7,2.543601]
[1757340123863,0.19747818,883.34,881.71,2.543601]
[1757340124062,0.19747818,883.34,881.7,2.543601]
[1757340124363,0.19747818,883.34,881.71,2.543601]
[1757340124559,0.19747818,883.34,881.7,2.543601]
[1757340127760,0.19747818,883.34,881.71,2.543601]
[1757340128064,0.19747818,883.34,881.72,2.543601]
[1757340128665,0.19747818,883.34,881.71,2.543601]
[1757340132366,0.19747818,883.34,881.73,2.543601]
[1757340132564,0.19747818,883.34,881.79,2.543601]
[1757340132763,0.19747818,883.34,881.81,2.543601]
[1757340133863,0.19747818,883.34,881.82,2.543601]
[1757340134468,0.19747818,883.34,881.9,2.543601]
[1757340136367,0.19747818,883.34,881.91,2.543601]
[1757340136567,0.19747818,883.34,881.92,2.543601]
[1757340136967,0.19747818,883.34,881.97,2.543601]
[1757340137565,0.19747818,883.34,881.71,2.543601]
[1757340137566,0.19747818,883.34,881.98,2.543601]
[1757340137766,0.19747818,883.34,881.99,2.543601]
[1757340139572,0.19747818,883.34,882.02,2.543601]
[1757340141870,0.19747818,883.34,881.99,2.543601]
[1757340142872,0.19747818,883.34,882.0,2.543601]
[1757340144573,0.19747818,883.34,882.01,2.543601]
[1757340144773,0.19747818,883.34,882.0,2.543601]
[1757340147373,0.19747818,883.34,882.01,2.543601]
[1757340151181,0.19747818,883.34,882.03,2.543601]
[1757340152380,0.19747818,883.34,882.04,2.543601]
[1757340152784,0.19747818,883.34,882.09,2.543601]
[1757340153580,0.19747818,883.34,882.11,2.543601]
[1757340154880,0.19747818,883.34,882.16,2.543601]
[1757340155181,0.19747818,883.34,882.17,2.543601]
[1757340157485,0.19747818,883.34,882.2,2.543601]
[1757340161584,0.19747818,883.34,882.19,2.543601]
[1757340162986,0.19747818,883.34,882.19,3.30619317]
[1757340163189,0.19747818,883.34,882.2,3.30619317]
[1757340163887,0.19747818,883.34,882.21,3.30619317]
[1757340165788,0.19747818,883.34,882.19,3.30619317]
[1757340165984,1.0145114,884.19,882.05,3.10881579]
[1757340166288,1.0145114,884.14,882.06,1.78003257]
[1757340166686,1.0145114,884.13,882.06,1.78003257]
[1757340167187,1.0145114,884.12,882.05,1.78003257]
[1757340167692,1.0145114,884.11,882.05,1.78003257]
[1757340168288,1.0145114,884.13,882.07,1.78003257]
[1757340168492,1.0145114,884.12,882.07,1.78003257]
[1757340168794,1.0145114,884.16,882.07,1.78003257]
[1757340168991,0.19739417,883.61,882.07,1.78003257]
[1757340169194,0.19739417,883.61,882.06,1.78003257]
[1757340177299,0.19739417,883.61,882.09,1.78003257]
[1757340177704,0.19739417,883.61,882.14,1.78003257]
[1757340178307,0.19739417,883.61,882.13,1.78003257]
[1757340180501,0.19739417,883.61,882.17,1.78003257]
[1757340181709,0.19739417,883.61,882.18,1.78003257]
[1757340181905,0.19739417,883.61,881.9,2.543601]
[1757340181906,0.19739417,883.61,882.21,1.78003257]
[1757340182308,0.19739417,883.61,882.22,1.78003257]
[1757340183004,0.19739417,883.61,882.26,1.78003257]
[1757340183509,0.19739417,883.61,882.29,1.78003257]
[1757340183805,0.19739417,883.61,882.31,1.78003257]
[1757340184708,0.19739417,883.61,882.3,1.78003257]
[1757340185409,0.19739417,883.61,882.29,1.78003257]
[1757340185908,0.19739417,883.61,882.29,3.30673875]
[1757340186209,0.19739417,883.61,882.28,3.30673875]
[1757340186909,0.19739417,883.61,882.29,3.30673875]
[1757340187110,0.19739417,883.61,882.3,3.30673875]
[1757340188304,0.19739417,883.61,882.29,2.54414658]
[1757340188508,0.19739417,883.61,882.28,3.30673875]
[1757340189511,0.19739417,883.61,882.3,3.30673875]
[1757340191205,0.19739417,883.61,882.33,3.30673875]
[1757340191406,0.19739417,883.61,882.32,3.30673875]
[1757340193411,0.19739417,883.61,882.33,3.30673875]
[1757340193608,0.19739417,883.61,882.41,3.30673875]
[1757340195114,0.19739417,883.61,882.42,3.30673875]
[1757340196110,0.19739417,883.61,882.41,3.30673875]
[1757340197513,0.19739417,883.61,882.77,3.30673875]
[1757340197712,0.19739417,883.61,882.83,3.30673875]
[1757340198012,0.19739417,883.61,882.84,3.30673875]
[1757340198713,0.19739417,883.61,882.83,3.30673875]
[1757340200219,0.19739417,883.61,882.86,3.30673875]
[1757340200517,0.19739417,883.61,882.85,3.30673875]
[1757340202017,0.19739417,883.61,882.85,3.3055119]
[1757340202715,0.19739417,883.61,882.84,3.3055119]
[1757340204920,0.19739417,883.61,882.84,1.0174404]
[1757340205216,0.19739417,883.61,882.77,3.3055119]
[1757340205420,1.0145114,885.16,882.75,3.1082833]
[1757340205718,1.0145114,885.06,882.75,3.1082833]
[1757340205922,1.0145114,885.05,882.75,3.1082833]
[1757340206220,1.0145114,885.02,882.75,3.1082833]
[1757340206418,1.0145114,884.96,882.69,1.77880572]
[1757340206718,1.0145114,884.94,882.66,1.77880572]
[1757340207019,1.0145114,884.95,882.66,1.77880572]
[1757340207223,1.0145114,884.94,882.66,1.77880572]
[1757340207818,1.0145114,884.95,882.65,1.77764478]
[1757340208122,1.0145114,884.9,882.61,1.77764478]
[1757340208319,0.19726493,884.38,882.61,1.77764478]
[1757340209518,0.19726493,884.38,882.57,1.77764478]
[1757340211723,0.19726493,884.38,882.58,1.77764478]
[1757340211920,0.19726493,884.38,882.59,1.77764478]
[1757340213120,0.19726493,884.38,882.58,1.77764478]
[1757340214123,0.19726493,884.38,882.58,1.0174404]
[1757340214325,0.19726493,884.38,882.58,1.77773466]
[1757340215122,0.19726493,884.38,882.57,1.77773466]
[1757340215326,0.19726493,884.38,882.58,1.77773466]
[1757340222337,0.19726493,884.38,882.56,1.77773466]
[1757340223337,0.19726493,884.38,882.51,1.77773466]
[1757340225640,0.19726493,884.38,882.5,3.29855544]
[1757340225840,0.19726493,884.38,882.45,3.29855544]
[1757340226036,0.19726493,884.38,882.46,3.29855544]
[1757340226638,0.19726493,884.38,882.45,3.29855544]
[1757340227239,0.19726493,884.38,882.46,3.29855544]
[1757340228346,0.19726493,884.38,882.47,3.29855544]
[1757340230042,0.19726493,884.38,882.5,3.29855544]
[1757340230241,0.19726493,884.38,882.52,3.29855544]
[1757340230440,0.19726493,884.38,882.51,3.29855544]
[1757340230642,0.19726493,884.38,882.52,3.29855544]
[1757340231540,0.19726493,884.38,882.51,3.29855544]
[1757340237653,0.19726493,884.38,882.22,2.543601]
[1757340237654,0.19726493,884.38,882.52,3.29855544]
[1757340240855,0.19726493,884.38,882.51,3.29855544]
[1757340242161,0.19726493,884.38,882.52,3.29855544]
[1757340243062,0.19726493,884.38,882.53,3.29855544]
[1757340243562,0.19726493,884.38,882.52,3.29855544]
[1757340243758,0.19726493,884.38,882.56,3.29855544]
[1757340243962,0.19726493,884.38,882.55,3.29855544]
[1757340244564,0.19726493,884.38,882.56,3.29855544]
[1757340245561,0.19726493,884.38,882.55,3.29855544]
[1757340248970,0.19726493,884.38,882.61,3.29855544]
[1757340250466,0.19726493,884.38,882.63,3.29855544]
[1757340250669,0.19726493,884.38,882.64,3.29855544]
[1757340251170,0.19726493,884.38,882.67,3.29855544]
[1757340254269,0.19726493,884.38,882.65,3.29855544]
[1757340254574,1.0145114,884.76,882.53,3.1012715]
[1757340255375,1.0145114,884.62,882.52,2.53826118]
[1757340255575,1.0145114,884.58,882.47,2.53826118]
[1757340255776,1.0145114,884.43,882.47,2.53826118]
[1757340256377,1.0145114,884.42,882.47,2.53826118]
[1757340257578,0.19731694,883.94,882.47,2.53826118]
[1757340265489,0.19731694,883.94,882.48,2.53826118]
[1757340267090,0.19731694,883.94,882.52,2.53826118]
[1757340267890,0.19731694,883.94,882.53,2.53826118]
[1757340271993,0.19731694,883.94,882.56,2.53826118]
[1757340273595,0.19731694,883.94,882.55,2.53826118]
[1757340275000,0.19731694,883.94,882.54,2.53826118]
[1757340276597,0.19731694,883.94,882.5,2.53826118]
[1757340277402,0.19731694,883.94,882.47,2.53826118]
[1757340285411,0.19731694,883.94,882.48,2.53826118]
[1757340286908,0.19731694,883.94,882.47,2.53826118]
[1757340299319,0.19731694,883.94,882.3,2.53826118]
[1757340299724,0.19731694,883.94,882.37,2.53826118]
[1757340303029,0.19731694,883.94,882.36,2.53826118]
[1757340303228,0.19731694,883.94,882.32,2.53826118]
[1757340303429,0.19731694,883.94,882.3,2.53826118]
[1757340303730,0.19731694,883.94,882.29,2.53826118]
[1757340305532,1.0145114,884.1,882.08,2.3408866]
[1757340306134,1.0145114,884.12,882.08,2.3408866]
[1757340306630,1.0145114,884.12,882.07,1.52082078]
[1757340306840,1.0145114,884.0,882.01,1.52082078]
[1757340307043,1.0145114,883.85,881.92,1.52082078]
[1757340307329,1.0145114,883.85,881.83,1.52082078]
[1757340308037,1.0145114,883.84,881.82,1.52082078]
[1757340308235,1.0145114,883.88,881.82,1.52082078]
[1757340308740,0.19744625,883.34,881.82,1.52082078]
[1757340309239,0.19744625,883.34,881.83,1.52082078]
[1757340309937,0.19744625,883.34,881.84,1.52082078]
[1757340310137,0.19744625,883.34,881.85,1.52082078]
[1757340310337,0.19744625,883.34,881.88,1.52082078]
[1757340312841,0.19744625,883.34,881.94,1.52082078]
[1757340313442,0.19744625,883.34,881.98,1.52082078]
[1757340314844,0.19744625,883.34,881.99,2.28292124]
[1757340316141,0.19744625,883.34,882.06,2.28292124]
[1757340317242,0.19744625,883.34,882.12,2.28292124]
[1757340317542,0.19744625,883.34,882.13,2.28292124]
[1757340319342,0.19744625,883.34,882.17,2.28292124]
[1757340321242,0.19744625,883.34,882.16,2.28292124]
[1757340324146,1.0145114,884.48,881.92,0.56471021]
[1757340324842,1.0145114,884.41,881.92,2.08553099]
[1757340325046,1.0145114,884.42,881.92,2.08553099]
[1757340326148,1.0145114,884.43,881.92,2.08553099]
[1757340326647,1.0145114,884.42,881.92,2.08553099]
[1757340326845,1.0145114,884.37,881.91,1.52082078]
[1757340327150,0.19740705,883.8,881.92,1.52082078]
[1757340327548,1.0145114,884.24,881.61,1.32338909]
[1757340327749,1.0145114,884.23,880.3,2.543601]
[1757340327949,1.0145114,884.23,880.31,0.75594924]
[1757340328245,1.0145114,884.25,880.32,0.75594924]
[1757340328449,1.0145114,884.25,880.33,0.75594924]
[1757340328750,1.0145114,884.24,880.34,0.75594924]
[1757340328951,1.0145114,884.24,880.35,0.75594924]
[1757340329246,1.0145114,884.26,880.36,0.75594924]
[1757340329450,1.0145114,884.26,880.37,0.75594924]
[1757340329747,1.0145114,884.15,880.38,0.75594924]
[1757340329951,1.0145114,884.15,880.33,2.543601]
[1757340329952,1.0145114,884.15,880.39,0.75594924]
[1757340330153,1.0145114,884.15,879.96,0.1975275]
[1757340330154,1.0145114,884.18,880.61,2.543601]
[1757340330451,1.0145114,884.18,880.62,0.75594924]
[1757340330751,0.19752918,883.22,880.63,0.75594924]
[1757340331050,0.19752918,883.22,880.64,0.75594924]
[1757340331247,0.19752918,883.22,880.69,2.543601]
[1757340331448,0.19752918,883.22,880.7,0.75594924]
[1757340331648,0.19752918,883.22,880.77,2.543601]
[1757340331852,0.19752918,883.22,880.78,0.75594924]
[1757340332053,0.19752918,883.22,880.79,0.75594924]
[1757340332350,0.19752918,883.22,880.8,0.75594924]
[1757340332549,0.19752918,883.22,880.81,0.75594924]
[1757340332752,0.19752918,883.22,880.82,0.75594924]
[1757340332948,0.19752918,883.22,880.83,0.75594924]
[1757340333252,0.19752918,883.22,880.87,2.543601]
[1757340333452,0.19752918,883.22,880.88,0.75594924]
[1757340333752,0.19752918,883.22,880.87,2.543601]
[1757340333753,0.19752918,883.22,880.42,2.543601]
[1757340334047,0.19752918,883.22,880.43,0.75475023]
[1757340334250,0.19752918,883.22,880.44,0.75475023]
[1757340334453,0.19752918,883.22,880.45,0.75475023]
[1757340334650,0.19752918,883.22,880.46,0.75475023]
[1757340334851,0.19752918,883.22,880.47,0.75475023]
[1757340335048,0.19752918,883.22,880.48,0.75475023]
[1757340335253,0.19752918,883.22,880.49,0.75475023]
[1757340335453,0.19752918,883.22,880.5,0.75475023]
[1757340335754,0.19752918,883.22,881.43,1.0129524]
[1757340338759,0.19752918,883.22,881.3,1.0129524]
[1757340343460,0.19752918,883.22,881.31,1.0129524]
[1757340345060,0.19752918,883.22,881.32,1.0129524]
[1757340345354,0.19752918,883.22,881.39,1.0129524]
[1757340346060,0.19752918,883.22,881.46,1.0129524]
[1757340346961,0.19752918,883.22,881.48,1.0129524]
[1757340347357,0.19752918,883.22,881.52,1.0129524]
[1757340347561,0.19752918,883.22,881.52,2.5279329]
[1757340347762,0.19752918,883.22,881.53,2.5279329]
[1757340347963,0.19752918,883.22,881.55,2.5279329]
[1757340349062,0.19752918,883.22,881.6,2.5279329]
[1757340349258,0.19752918,883.22,881.61,2.5279329]
[1757340349462,0.19752918,883.22,881.62,2.5279329]
[1757340349663,0.19752918,883.22,881.63,2.5279329]
[1757340350064,0.19752918,883.22,881.73,2.5279329]
[1757340350559,0.19752918,883.22,881.72,2.5279329]
[1757340354665,0.19752918,883.22,881.71,2.5279329]
[1757340355068,0.19752918,883.22,881.72,1.5149805]
[1757340355368,0.19752918,883.22,881.72,2.5279329]
[1757340356766,0.19752918,883.22,881.71,2.5279329]
[1757340357571,0.19752918,883.22,881.7,2.5279329]
[1757340359571,0.19752918,883.22,881.69,2.5279329]
[1757340359874,0.19752918,883.22,881.7,2.5279329]
[1757340361072,0.19752918,883.22,881.71,2.5279329]
[1757340368879,0.19752918,883.22,880.93,2.543601]
[1757340368880,0.19752918,883.22,881.92,2.5279329]
[1757340369788,0.19752918,883.22,881.91,2.5279329]
[1757340374197,0.19752918,883.22,881.92,2.5279329]
[1757340374391,0.19752918,883.22,881.95,2.5279329]
[1757340374589,0.19752918,883.22,881.98,2.5279329]
[1757340377695,0.19752918,883.22,881.99,2.5279329]
[1757340377895,0.19752918,883.22,881.98,2.5279329]
[1757340378089,0.19752918,883.22,881.99,2.5279329]
[1757340378295,0.19752918,883.22,882.02,2.5279329]
[1757340384103,0.19752918,883.22,882.02,3.28969668]
[1757340389107,0.19752918,883.22,882.02,2.5279329]
[1757340389306,0.19752918,883.22,882.02,3.28936204]
[1757340402207,0.19752918,883.22,881.8,2.543601]
[1757340402208,0.19752918,883.22,882.03,3.28936204]
[1757340405810,0.19752918,883.22,882.02,3.28936204]
[1757340412919,0.19752918,883.22,882.01,3.28936204]
[1757340413619,0.19752918,883.22,882.02,3.28936204]
[1757340416624,0.19752918,883.22,882.01,3.28936204]
[1757340417024,0.19752918,883.22,881.97,3.28936204]
[1757340417321,0.19752918,883.22,881.79,3.28936204]
[1757340418224,0.19752918,883.22,881.8,1.0129524]
[1757340418425,0.19752918,883.22,881.8,3.28936204]
[1757340418928,0.19752918,883.22,881.79,3.28936204]
[1757340419725,0.19752918,883.22,881.8,3.28936204]
[1757340420328,0.19752918,883.22,881.8,1.77438154]
[1757340420524,0.19752918,883.22,881.92,1.77438154]
[1757340421429,0.19752918,883.22,881.93,1.77438154]
[1757340422024,0.19752918,883.22,881.94,1.77438154]
[1757340422230,0.19752918,883.22,881.94,3.28936204]
[1757340422428,0.19752918,883.22,882.03,3.28936204]
[1757340424828,0.19752918,883.22,882.02,3.28936204]
[1757340427834,0.19752918,883.22,882.02,5.83296304]
[1757340428335,0.19752918,883.22,882.01,5.83296304]
[1757340429330,0.19752918,883.22,881.91,3.28936204]
[1757340430735,0.19752918,883.22,881.92,3.28936204]
[1757340431433,0.19752918,883.22,881.91,3.28936204]
[1757340434935,0.19752918,883.22,881.9,3.28936204]
[1757340435236,0.19752918,883.22,881.87,3.28936204]
[1757340436238,0.19752918,883.22,881.84,3.28936204]
[1757340436442,0.19752918,883.22,881.82,3.28936204]
[1757340446045,0.19752918,883.22,881.09,3.5610414]
[1757340446046,0.19752918,883.22,881.9,3.28936204]
[1757340447750,0.19752918,883.22,881.91,3.28936204]
[1757340450550,0.19752918,883.22,881.9,3.28936204]
[1757340450855,0.19752918,883.22,881.91,3.28936204]
[1757340452252,1.0145114,883.79,881.91,3.29349646]
[1757340453350,1.0145114,883.78,881.91,3.29349646]
[1757340454555,1.0145114,883.83,881.97,3.29349646]
[1757340456059,1.0145114,883.85,882.01,3.29349646]
[1757340456256,1.0145114,884.18,882.01,3.29349646]
[1757340456459,1.0145114,884.28,882.11,3.29349646]
[1757340456957,1.0145114,884.29,882.12,3.29349646]
[1757340457360,1.0145114,884.3,882.12,3.29349646]
[1757340457857,0.19737682,883.76,882.12,3.29349646]
[1757340459360,0.19737682,883.76,882.12,2.5279329]
[1757340459560,0.19737682,883.76,882.12,3.29315023]
[1757340462863,0.19737682,883.76,882.1,3.29315023]
[1757340463965,0.19737682,883.76,882.11,3.29315023]
[1757340467270,0.19737682,883.76,882.1,3.29315023]
[1757340468668,0.19737682,883.76,882.09,3.29315023]
[1757340469770,0.19737682,883.76,882.11,3.29315023]
[1757340472071,0.19737682,883.76,882.1,3.29315023]
[1757340472275,0.19737682,883.76,882.09,5.83675123]
[1757340472772,0.19737682,883.76,882.09,3.29315023]
[1757340474071,0.19737682,883.76,882.09,2.5279329]
[1757340474272,0.19737682,883.76,882.1,3.29260975]
[1757340475981,0.19737682,883.76,882.09,3.29260975]
[1757340479180,0.19737682,883.76,882.1,3.29260975]
[1757340481278,0.19737682,883.76,882.09,3.29260975]
[1757340481782,0.19737682,883.76,882.1,3.29260975]
[1757340482386,0.19737682,883.76,882.11,3.29260975]
[1757340487892,0.19737682,883.76,882.12,3.29260975]
[1757340488188,0.19737682,883.76,882.13,3.29260975]
[1757340488388,0.19737682,883.76,882.14,3.29260975]
[1757340490293,0.19737682,883.76,882.22,3.29260975]
[1757340490593,0.19737682,883.76,882.23,3.29260975]
[1757340490890,0.19737682,883.76,882.29,3.29260975]
[1757340494397,0.19737682,883.76,882.28,3.29260975]
[1757340506807,0.19737682,883.76,882.25,3.29260975]
[1757340507608,0.19737682,883.76,882.17,3.29260975]
[1757340507908,0.19737682,883.76,882.15,3.29260975]
[1757340508604,0.19737682,883.76,882.14,3.29260975]
[1757340512010,0.19737682,883.76,882.15,3.29260975]
[1757340512210,0.19737682,883.76,882.19,3.29260975]
[1757340512706,0.19737682,883.76,882.22,3.29260975]
[1757340513409,0.19737682,883.76,882.29,3.29260975]
[1757340514413,0.19737682,883.76,882.28,3.29260975]
[1757340516914,0.19737682,883.76,882.29,3.29260975]
[1757340518711,0.19737682,883.76,882.3,3.29260975]
[1757340520108,0.19737682,883.76,882.29,3.29260975]
[1757340521308,0.19737682,883.76,882.28,3.29260975]
[1757340524415,0.19737682,883.76,882.26,2.5279329]
[1757340524616,0.19737682,883.76,881.64,3.5610414]
[1757340524812,0.19737682,883.76,880.06,8.1395233]
[1757340560254,0.19737682,883.76,882.41,3.31592002]
[1757340565361,0.19737682,883.76,882.42,3.31592002]
[1757340565958,0.19737682,883.76,882.45,3.31592002]
[1757340566657,0.19737682,883.76,882.46,3.31592002]
[1757340567962,0.19737682,883.76,882.45,3.31592002]
[1757340570963,0.19737682,883.76,882.48,3.31592002]
[1757340583571,0.19737682,883.76,882.47,3.31592002]
[1757340586982,0.19737682,883.76,882.33,3.31592002]
[1757340587176,1.0186763,884.32,882.26,3.11858909]
[1757340588179,1.0186763,884.31,882.25,2.29563692]
[1757340588483,1.0186763,884.32,882.2,2.29563692]
[1757340588682,1.0186763,884.33,882.21,2.29563692]
[1757340589478,1.0186763,884.35,882.21,2.29563692]
[1757340589692,1.0186763,884.32,882.21,2.29563692]
[1757340589981,1.0186763,884.3,882.19,2.29563692]
[1757340590180,0.19736506,883.8,882.19,2.29563692]
[1757340590680,0.19736506,883.8,882.15,2.29563692]
[1757340595086,0.19736506,883.8,882.16,2.29563692]
[1757340595488,0.19736506,883.8,882.22,2.29563692]
[1757340595792,0.19736506,883.8,882.25,2.29563692]
[1757340596288,0.19736506,883.8,882.33,2.29563692]
[1757340596589,0.19736506,883.8,882.34,2.29563692]
[1757340596990,0.19736506,883.8,882.42,2.29563692]
[1757340599489,0.19736506,883.8,882.41,2.29563692]
[1757340599793,0.19736506,883.8,882.42,2.29563692]
[1757340602595,0.19736506,883.8,882.49,2.29563692]
[1757340603893,0.19736506,883.8,882.5,2.29563692]
[1757340605698,0.19736506,883.8,882.56,2.29563692]
[1757340605997,0.19736506,883.8,882.57,2.29563692]
[1757340606400,0.19736506,883.8,882.62,2.29563692]
[1757340610504,0.19736506,883.8,882.61,2.29563692]
[1757340616110,0.19736506,883.8,882.62,2.29563692]
[1757340616311,0.19736506,883.8,882.69,2.29563692]
[1757340617110,0.19736506,883.8,882.69,3.31384552]
[1757340621913,0.19736506,883.8,882.68,3.31384552]
[1757340623013,0.19736506,883.8,882.65,3.31384552]
[1757340623211,0.19736506,883.8,882.61,3.31384552]
[1757340626315,0.19736506,883.8,882.57,3.31384552]
[1757340627616,0.19736506,883.8,882.58,3.31384552]
[1757340627918,0.19736506,883.8,882.55,3.31384552]
[1757340640225,0.19736506,883.8,882.56,3.31384552]
[1757340640723,0.19736506,883.8,882.57,3.31384552]
[1757340643425,0.19736506,883.8,882.58,3.31384552]
[1757340644725,0.19736506,883.8,882.61,3.31384552]
[1757340644931,0.19736506,883.8,882.64,3.31384552]
[1757340646131,0.19736506,883.8,882.65,3.31384552]
[1757340653340,0.19736506,883.8,882.49,2.5507077]
[1757340653341,0.19736506,883.8,882.64,3.31384552]
[1757340656243,0.19736506,883.8,882.62,3.31384552]
[1757340656945,0.19736506,883.8,882.63,3.31384552]
[1757340658145,0.19736506,883.8,882.68,3.31384552]
[1757340658445,0.19736506,883.8,882.69,3.31384552]
[1757340662457,0.19736506,883.8,882.7,3.31384552]
[1757340663555,0.19736506,883.8,882.69,3.31384552]
[1757340665253,0.19736506,883.8,882.7,3.31384552]
[1757340665859,0.19736506,883.8,882.69,3.31384552]
[1757340672561,0.19736506,883.8,882.67,3.31384552]
[1757340672862,0.19736506,883.8,882.61,3.31384552]
[1757340674158,0.19736506,883.8,882.62,3.31384552]
[1757340680966,0.19736506,883.8,882.61,3.31384552]
[1757340681168,0.19736506,883.8,882.58,3.31384552]
[1757340684767,0.19736506,883.8,882.57,3.31384552]
[1757340686667,0.19736506,883.8,882.54,3.31384552]
[1757340694172,0.19736506,883.8,882.55,3.31384552]
[1757340694573,0.19736506,883.8,882.59,3.31384552]
[1757340695475,0.19736506,883.8,882.6,3.31384552]
[1757340695679,0.19736506,883.8,882.66,3.31384552]
[1757340698882,0.19736506,883.8,882.65,3.31384552]
[1757340699381,0.19736506,883.8,882.64,3.31384552]
[1757340702084,0.19736506,883.8,882.63,3.31384552]
[1757340704784,0.19736506,883.8,882.62,3.31384552]
[1757340705487,0.19736506,883.8,882.63,3.31384552]
[1757340707289,0.19736506,883.8,882.62,3.31384552]
[1757340714996,0.19736506,883.8,882.63,3.31384552]
[1757340717096,0.19736506,883.8,882.62,3.31384552]
[1757340720698,0.19736506,883.8,882.59,3.31384552]
[1757340720896,0.19736506,883.8,882.58,3.31384552]
[1757340721400,0.19736506,883.8,882.56,3.31384552]
[1757340721600,0.19736506,883.8,882.54,3.31384552]
[1757340722098,0.19736506,883.8,882.51,3.31384552]
[1757340722299,0.19736506,883.8,882.5,3.31384552]
[1757340722499,0.19736506,883.8,882.45,3.31384552]
[1757340724600,0.19736506,883.8,882.42,3.31384552]
[1757340724996,0.19736506,883.8,882.43,3.31384552]
[1757340726598,0.19736506,883.8,882.44,3.31384552]